bitfinex/quotes_SOLUSD_20241121
["timestamp","ask_amount","ask_price","bid_price","bid_amount"]
[1732217679553,2.47485982,255.27,255.16,19.11756152]
[1732217680059,2.47485982,255.26,255.18,19.11756152]
[1732217681059,2.47485982,255.26,255.19,23.776884]
[1732217683240,2.47485982,255.26,255.17,23.776884]
[1732217683563,44.4902,255.28,255.1,2.19372204]
[1732217683564,44.4902,255.28,255.21,23.776884]
[1732217683764,2.47485982,255.27,255.21,23.776884]
[1732217684344,44.4902,255.28,255.21,23.776884]
[1732217684948,2.47485982,255.27,255.21,23.776884]
[1732217685153,44.4902,255.28,255.18,19.11756152]
[1732217685154,44.4902,255.28,255.19,23.776884]
[1732217685346,2.47485982,255.26,255.19,23.776884]
[1732217686141,2.47485982,255.26,255.17,23.776884]
[1732217686942,2.47485982,255.26,255.18,19.11756152]
[1732217687142,2.47485982,255.21,255.19,23.776884]
[1732217687367,2.47485982,255.21,255.14,19.11756152]
[1732217687863,2.47485982,255.21,255.12,19.11756152]
[1732217688664,2.47485982,255.24,255.12,19.11756152]
[1732217688863,2.47485982,255.2,255.12,19.11756152]
[1732217689076,2.47485982,255.24,255.12,19.11756152]
[1732217689372,2.47485982,255.2,255.13,23.776884]
[1732217689851,2.47485982,255.23,255.13,23.776884]
[1732217690164,2.47485982,255.2,255.13,23.776884]
[1732217691259,2.47485982,255.2,255.08,19.11756152]
[1732217691459,2.47485982,255.16,255.08,19.11756152]
[1732217692152,2.47485982,255.16,255.1,19.11756152]
[1732217692352,2.47485982,255.12,255.07,0.39204924]
[1732217692672,2.47485982,255.08,255.07,0.39204924]
[1732217692970,2.47485982,255.13,255.07,0.39204924]
[1732217693860,46.32515982,255.15,255.07,0.39204924]
[1732217694868,30.7538,255.15,255.09,11.9671148]
[1732217695074,44.6241,255.21,255.14,23.776884]
[1732217695573,44.6241,255.21,255.12,23.776884]
[1732217696854,44.6241,255.21,255.11,23.776884]
[1732217697067,2.47485982,255.19,255.11,23.776884]
[1732217697771,2.47485982,255.19,255.09,23.776884]
[1732217697991,44.6241,255.21,255.07,2.63041731]
[1732217697992,44.6241,255.21,255.14,19.13981726]
[1732217698352,31.6742,255.21,255.16,19.13981726]
[1732217698673,45.04165982,255.28,255.16,19.13981726]
[1732217698858,2.47485982,255.26,255.16,19.13981726]
[1732217699058,45.04165982,255.28,255.16,19.13981726]
[1732217699253,45.04165982,255.28,255.19,23.776884]
[1732217699680,2.47485982,255.26,255.19,23.776884]
[1732217700377,2.47485982,255.27,255.17,23.776884]
[1732217700577,2.47485982,255.24,255.17,23.776884]
[1732217701054,2.47485982,255.24,255.15,25.97287739]
[1732217701255,2.47485982,255.24,255.13,23.776884]
[1732217701454,2.47485982,255.24,255.15,23.776884]
[1732217702357,42.5668,255.28,255.18,19.13981726]
[1732217702573,30.015,255.28,255.22,19.13981726]
[1732217702883,31.087,255.34,255.27,23.776884]
[1732217703261,31.087,255.34,255.28,19.13981726]
[1732217703458,31.087,255.34,255.29,23.776884]
[1732217705475,2.47485982,255.39,255.33,23.776884]
[1732217705686,43.0425,255.4,255.33,23.776884]
[1732217706058,30.2039,255.4,255.33,23.776884]
[1732217706580,2.47485982,255.46,255.36,23.776884]
[1732217706757,2.47485982,255.43,255.36,23.776884]
[1732217706961,2.47485982,255.42,255.36,23.776884]
[1732217707366,2.47485982,255.42,255.34,23.776884]
[1732217707677,2.47485982,255.42,255.06,19.13981726]
[1732217707678,2.47485982,255.44,255.31,19.13981726]
[1732217707978,2.47485982,255.44,255.16,33.2228]
[1732217707979,2.5,255.44,255.33,19.13981726]
[1732217708169,2.47485982,255.41,255.31,19.13981726]
[1732217708874,32.855,255.5,255.32,23.776884]
[1732217708875,2.47485982,255.45,255.32,23.776884]
[1732217709081,4.97485982,255.46,255.34,23.776884]
[1732217709262,2.47485982,255.39,255.34,23.776884]
[1732217709674,2.47485982,255.45,255.36,19.13981726]
[1732217709871,2.47485982,255.47,255.39,23.776884]
[1732217710372,2.47485982,255.45,255.39,23.776884]
[1732217710776,2.47485982,255.42,255.39,23.776884]
[1732217711285,2.5,255.48,255.37,23.776884]
[1732217711286,2.47485982,255.45,255.37,23.776884]
[1732217711458,2.47485982,255.41,255.35,23.776884]
[1732217712262,2.47485982,255.39,255.32,19.13981726]
[1732217712679,2.47485982,255.39,255.3,19.13981726]
[1732217712866,2.47485982,255.37,255.3,19.13981726]
[1732217713265,2.47485982,255.39,255.3,19.13981726]
[1732217713472,2.47485982,255.37,255.31,23.776884]
[1732217713876,2.47485982,255.37,255.32,19.13981726]
[1732217714081,2.47485982,255.37,255.33,23.776884]
[1732217714587,2.5,255.42,255.33,23.776884]
[1732217714588,2.47485982,255.4,255.33,23.776884]
[1732217714960,2.47485982,255.37,255.33,23.776884]
[1732217715683,33.93825982,255.37,255.27,21.27713312]
[1732217715859,2.47485982,255.36,255.27,21.27713312]
[1732217716878,2.5,255.29,255.07,13.40234924]
[1732217717068,2.47485982,255.25,255.07,18.06422965]
[1732217717379,2.47485982,255.29,255.21,19.13981726]
[1732217717679,4.97485982,255.29,255.21,19.13981726]
[1732217717864,2.47485982,255.27,255.21,19.13981726]
[1732217718282,2.5,255.29,255.22,23.776884]
[1732217718965,2.47485982,255.27,255.22,23.776884]
[1732217719390,2.5,255.24,255.18,19.13981726]
[1732217719563,2.47485982,255.27,255.08,16.37188041]
[1732217719564,2.47485982,255.27,255.2,19.13981726]
[1732217719764,2.47485982,255.27,255.22,19.13981726]
[1732217720979,2.47485982,255.27,255.23,23.776884]
[1732217721374,31.4634,255.37,255.26,19.13981726]
[1732217721586,31.4634,255.37,255.34,23.776884]
[1732217721587,2.47485982,255.36,255.34,23.776884]
[1732217721762,31.4634,255.37,255.34,23.776884]
[1732217723660,31.4634,255.37,255.24,20.0]
[1732217723661,33.93825982,255.37,255.32,23.776884]
[1732217723868,4.97485982,255.34,255.32,23.776884]
[1732217724181,2.5,255.32,255.26,20.0]
[1732217724768,2.47485982,255.29,255.23,19.13981726]
[1732217725081,2.47485982,255.29,255.21,19.13981726]
[1732217725586,2.5,255.25,255.19,19.13981726]
[1732217725884,2.5,255.25,255.17,19.13981726]
[1732217726065,2.47485982,255.24,255.17,19.13981726]
[1732217726877,2.47485982,255.26,255.22,23.776884]
[1732217727075,2.47485982,255.28,255.25,19.13981726]
[1732217727388,2.47485982,255.3,255.26,23.776884]
[1732217727964,2.47485982,255.3,255.28,26.127184]
[1732217728775,2.47485982,255.3,255.28,32.003084]
[1732217729379,2.5,255.35,255.28,32.003084]
[1732217729380,2.5,255.31,255.28,32.003084]
[1732217729570,2.47485982,255.3,255.28,32.003084]
[1732217730187,2.5,255.33,255.28,32.003084]
[1732217730385,2.47485982,255.3,255.28,32.003084]
[1732217732071,2.5,255.29,255.27,23.776884]
[1732217732291,31.4634,255.37,255.23,5.8769]
[1732217732292,2.47485982,255.25,255.23,5.8769]
[1732217732689,2.47485982,255.25,255.23,8.2277]
[1732217733078,2.47485982,255.25,255.21,2.3509]
[1732217733296,2.47485982,255.25,255.18,5.8781]
[1732217733297,2.07464813,255.26,255.16,2.19250416]
[1732217733481,2.07464813,255.28,255.2,19.13981726]
[1732217733793,2.47485982,255.26,255.2,19.13981726]
[1732217733992,2.47485982,255.28,255.25,23.776884]
[1732217734196,2.07464813,255.27,255.25,23.776884]
[1732217734413,2.47485982,255.26,255.25,23.776884]
[1732217734585,2.07464813,255.25,255.23,23.776884]
[1732217734901,4.54950795,255.25,255.23,23.776884]
[1732217735102,4.54950795,255.25,255.22,23.776884]
[1732217735602,2.07464813,255.25,255.22,23.776884]
[1732217735806,4.54950795,255.25,255.22,23.776884]
[1732217735983,2.07464813,255.25,255.22,23.776884]
[1732217736491,2.07464813,255.28,255.25,23.776884]
[1732217736686,2.47485982,255.27,255.25,23.776884]
[1732217737194,2.07464813,255.28,255.25,23.776884]
[1732217737695,2.47485982,255.26,255.25,23.776884]
[1732217737895,2.07464813,255.24,255.23,5.877]
[1732217738096,2.07464813,255.17,255.15,2.3515]
[1732217738398,2.47485982,255.19,255.16,19.13981726]
[1732217738999,45.8085,255.25,255.18,19.13981726]
[1732217739178,2.47485982,255.23,255.22,23.776884]
[1732217740112,4.54950795,255.23,255.22,23.776884]
[1732217740800,2.07464813,255.17,255.16,5.8785]
[1732217741011,4.54950795,255.17,255.16,8.2299]
[1732217741300,2.47485982,255.17,255.16,5.8785]
[1732217741505,2.47485982,255.17,255.16,8.2299]
[1732217741999,2.47485982,255.17,255.16,29.655384]
[1732217742197,2.47485982,255.19,255.17,23.776884]
[1732217742388,2.07464813,255.23,255.17,42.91670126]
[1732217742592,2.47485982,255.23,255.2,23.776884]
[1732217742798,37.64990795,255.25,255.21,19.13981726]
[1732217743103,37.64990795,255.25,255.22,23.776884]
[1732217743302,35.23264813,255.35,255.24,23.776884]
[1732217743499,2.47485982,255.34,255.3,23.776884]
[1732217744302,2.47485982,255.33,255.32,23.776884]
[1732217744684,4.54950795,255.4,255.32,23.776884]
[1732217744888,2.07464813,255.4,255.37,23.776884]
[1732217745385,2.47485982,255.42,255.37,23.776884]
[1732217745596,4.54950795,255.42,255.37,23.776884]
[1732217745806,4.54950795,255.42,255.38,2.3494]
[1732217745987,2.07464813,255.42,255.39,23.776884]
[1732217746185,2.07464813,255.41,255.39,23.776884]
[1732217746403,4.54950795,255.44,255.39,23.776884]
[1732217746711,2.47485982,255.46,255.41,23.776884]
[1732217746894,4.54950795,255.46,255.42,19.13981726]
[1732217747204,4.54950795,255.46,255.45,23.776884]
[1732217747514,4.54950795,255.46,255.43,23.776884]
[1732217747804,4.54950795,255.46,255.45,23.776884]
[1732217748110,2.47485982,255.46,255.45,23.776884]
[1732217749496,4.54950795,255.46,255.44,23.776884]
[1732217750515,2.07464813,255.46,255.44,23.776884]
[1732217750805,2.47485982,255.45,255.44,23.776884]
[1732217754191,4.54950795,255.48,255.46,23.776884]
[1732217755185,2.07464813,255.48,255.47,26.125484]
[1732217755389,2.07464813,255.52,255.48,23.776884]
[1732217755691,2.47485982,255.52,255.48,23.776884]
[1732217755903,2.07464813,255.53,255.48,23.776884]
[1732217756106,2.47485982,255.51,255.48,42.91670126]
[1732217756505,2.47485982,255.51,255.49,8.2194]
[1732217756688,2.07464813,255.53,255.5,23.776884]
[1732217756897,2.47485982,255.51,255.5,23.776884]
[1732217757093,2.07464813,255.61,255.5,42.91670126]
[1732217757308,2.47485982,255.63,255.6,42.91670126]
[1732217757495,2.07464813,255.65,255.63,23.776884]
[1732217757805,2.07464813,255.65,255.62,23.776884]
[1732217758191,12.7854,255.69,255.62,23.776884]
[1732217758192,2.47485982,255.64,255.62,42.91670126]
[1732217758388,2.47485982,255.66,255.63,19.13981726]
[1732217758616,2.47485982,255.68,255.64,42.91670126]
[1732217758819,2.07464813,255.69,255.66,19.13981726]
[1732217759113,2.07464813,255.69,255.63,8.2149]
[1732217759114,4.54950795,255.69,255.68,23.776884]
[1732217760215,4.54950795,255.63,255.58,27.35631726]
[1732217761008,4.54950795,255.65,255.6,19.13981726]
[1732217761215,2.47485982,255.65,255.6,19.13981726]
[1732217761723,2.07464813,255.62,255.6,23.776884]
[1732217762010,2.47485982,255.59,255.58,5.869]
[1732217762410,4.54950795,255.53,255.52,5.8702]
[1732217764106,2.07464813,255.59,255.52,19.13981726]
[1732217764417,2.47485982,255.63,255.57,19.13981726]
[1732217764606,4.54950795,255.61,255.58,23.776884]
[1732217765599,4.54950795,255.59,255.58,26.124484]
[1732217766000,4.54950795,255.59,255.58,23.776884]
[1732217766201,2.47485982,255.54,255.51,5.8704]
[1732217766499,4.54950795,255.54,255.51,5.8704]
[1732217766812,2.47485982,255.54,255.51,25.01021726]
[1732217767005,4.54950795,255.58,255.53,19.13981726]
[1732217767206,2.47485982,255.58,255.53,19.13981726]
[1732217767409,2.47485982,255.64,255.58,23.776884]
[1732217767607,2.07464813,255.63,255.61,19.13981726]
[1732217768226,2.47485982,255.62,255.61,42.91670126]
[1732217768421,4.54950795,255.63,255.61,19.13981726]
[1732217768628,4.54950795,255.63,255.62,26.124084]
[1732217768808,2.07464813,255.63,255.62,26.124084]
[1732217769123,4.54950795,255.63,255.62,26.124084]
[1732217769624,4.54950795,255.61,255.6,23.776884]
[1732217770013,4.54950795,255.61,255.59,5.8687]
[1732217770209,2.07464813,255.54,255.53,8.218]
[1732217771422,4.54950795,255.54,255.53,8.218]
[1732217771729,2.47485982,255.53,255.5,11.7416]
[1732217772611,2.47485982,255.53,255.51,23.776884]
[1732217772930,2.47485982,255.53,255.52,26.124984]
[1732217773115,2.47485982,255.53,255.52,2.3481]
[1732217773427,2.07464813,255.51,255.5,22.3482]
[1732217773725,2.07464813,255.51,255.5,2.3482]
[1732217774613,2.07464813,255.51,255.5,46.125084]
[1732217776705,2.07464813,255.51,255.5,26.125084]
[1732217776916,2.07464813,255.51,255.5,46.125084]
[1732217777210,2.47485982,255.54,255.51,23.776884]
[1732217777405,2.47485982,255.54,255.51,42.91670126]
[1732217777631,4.54950795,255.57,255.53,42.91670126]
[1732217777812,2.47485982,255.59,255.56,19.13981726]
[1732217778125,2.47485982,255.57,255.56,42.91670126]
[1732217778319,2.07464813,255.57,255.56,23.776884]
[1732217778502,4.54950795,255.57,255.55,23.776884]
[1732217778934,2.47485982,255.57,255.56,2.3477]
[1732217779124,4.54950795,255.57,255.56,26.124584]
[1732217779425,2.47485982,255.57,255.56,26.124584]
[1732217779830,2.47485982,255.58,255.56,26.124584]
[1732217780012,2.47485982,255.58,255.57,23.776884]
[1732217780735,30.9109,255.7,255.57,23.776884]
[1732217780736,2.07464813,255.61,255.57,23.776884]
[1732217781203,2.07464813,255.61,255.59,23.776884]
[1732217781410,2.47485982,255.51,255.5,2.3483]
[1732217781608,2.47485982,255.51,255.49,5.871]
[1732217781609,4.54950795,255.51,255.49,8.2194]
[1732217781819,2.07464813,255.51,255.49,8.2194]
[1732217782115,2.47485982,255.55,255.5,19.13981726]
[1732217782321,2.07464813,255.57,255.52,19.13981726]
[1732217783035,4.54950795,255.54,255.52,19.13981726]
[1732217783217,4.54950795,255.54,255.53,2.348]
[1732217783419,4.54950795,255.54,255.53,26.124884]
[1732217788637,2.47485982,255.6,255.54,43.776884]
[1732217788812,2.47485982,255.6,255.59,23.776884]
[1732217789132,2.47485982,255.62,255.59,23.776884]
[1732217789433,2.07464813,255.61,255.6,19.13981726]
[1732217789632,2.07464813,255.61,255.6,45.65530126]
[1732217790129,2.07464813,255.61,255.6,26.515484]
[1732217793019,2.47485982,255.62,255.61,23.776884]
[1732217793322,2.47485982,255.64,255.61,23.776884]
[1732217793520,32.1875,255.68,255.61,23.776884]
[1732217793521,4.54950795,255.62,255.61,23.776884]
[1732217794629,2.07464813,255.62,255.61,23.776884]
[1732217794834,4.54950795,255.62,255.61,23.776884]
[1732217795930,2.07464813,255.58,255.54,19.13981726]
[1732217796129,2.47485982,255.59,255.55,9.587]
[1732217796333,2.47485982,255.57,255.55,9.587]
[1732217796732,2.47485982,255.57,255.55,6.8479]
[1732217797034,2.07464813,255.6,255.56,19.13981726]
[1732217797235,4.54950795,255.61,255.56,19.13981726]
[1732217797440,2.47485982,255.58,255.56,19.13981726]
[1732217798038,2.47485982,255.58,255.57,33.363184]
[1732217798235,4.54950795,255.58,255.57,33.363184]
[1732217801535,2.07464813,255.58,255.57,33.363184]
[1732217801741,2.47485982,255.58,255.57,33.363184]
[1732217802123,2.07464813,255.61,255.56,11.91980893]
[1732217802124,4.54950795,255.61,255.58,26.515684]
[1732217802326,2.47485982,255.59,255.58,38.43549293]
[1732217803327,4.54950795,255.61,255.58,38.43549293]
[1732217803635,4.54950795,255.59,255.58,38.43549293]
[1732217803822,4.54950795,255.59,255.58,33.362784]
[1732217806248,4.54950795,255.55,255.51,11.91980893]
[1732217806540,2.07464813,255.53,255.51,11.91980893]
[1732217807137,2.07464813,255.53,255.49,35.40870567]
[1732217807442,2.07464813,255.5,255.49,35.40870567]
[1732217807644,2.07464813,255.5,255.49,55.40870567]
[1732217808338,2.07464813,255.5,255.49,79.18558967]
[1732217809325,2.07464813,255.5,255.49,59.18558967]
[1732217809543,2.07464813,255.5,255.49,57.02809293]
[1732217809745,4.54950795,255.5,255.49,33.366184]
[1732217810130,4.54950795,255.5,255.49,6.8495]
[1732217811217,2.47485982,255.5,255.49,6.8495]
[1732217811649,2.47485982,255.5,255.49,21.50910893]
[1732217812028,31.6387,255.56,255.49,21.50910893]
[1732217812029,2.47485982,255.53,255.5,23.776884]
[1732217812225,2.07464813,255.54,255.5,23.776884]
[1732217812723,2.07464813,255.52,255.5,23.776884]
[1732217812923,2.47485982,255.53,255.5,23.776884]
[1732217812924,4.54950795,255.55,255.5,23.776884]
[1732217813129,2.07464813,255.59,255.55,23.776884]
[1732217813432,2.07464813,255.59,255.56,11.91980893]
[1732217813741,2.07464813,255.59,255.58,23.776884]
[1732217813742,4.54950795,255.59,255.58,23.776884]
[1732217814046,2.07464813,255.6,255.59,23.776884]
[1732217819540,2.07464813,255.6,255.59,25.96882924]
[1732217821253,2.07464813,255.6,255.59,34.18492924]
[1732217822142,4.54950795,255.57,255.54,28.2177]
[1732217822344,4.54950795,255.57,255.55,11.91980893]
[1732217822840,1.34484813,255.57,255.54,8.2177]
[1732217823032,3.81970795,255.57,255.55,11.91980893]
[1732217823333,3.81970795,255.57,255.56,2.3477]
[1732217823537,3.81970795,255.57,255.56,26.124584]
[1732217824336,3.81970795,255.57,255.55,23.776884]
[1732217824658,2.47485982,255.57,255.54,5.8698]
[1732217824834,2.47485982,255.57,255.51,2.3481]
[1732217824835,2.47485982,255.53,255.51,2.3481]
[1732217825028,33.0799,255.57,255.49,5.8709]
[1732217825231,33.0799,255.57,255.49,8.2193]
[1732217826263,33.0799,255.57,255.49,17.79070893]
[1732217826761,33.0799,255.57,255.49,5.8709]
[1732217827576,33.0799,255.57,255.5,23.776884]
[1732217827762,2.5,255.55,255.44,5.8721]
[1732217827932,2.5,255.55,255.44,8.2209]
[1732217828633,5.0,255.55,255.44,8.2209]
[1732217828844,35.5799,255.57,255.44,5.8721]
[1732217829058,33.0799,255.57,255.44,5.8721]
[1732217829238,35.5799,255.57,255.44,5.8721]
[1732217829959,35.5799,255.57,255.45,23.776884]
[1732217830142,2.5,255.55,255.45,23.776884]
[1732217830344,5.0,255.55,255.45,23.776884]
[1732217831040,5.0,255.55,255.44,8.2209]
[1732217831234,2.12972843,255.64,255.34,2.3497]
[1732217831235,2.5,255.46,255.34,2.3497]
[1732217831458,2.5,255.46,255.33,5.8746]
[1732217831459,30.1926,255.45,255.33,8.2244]
[1732217832538,15.0352,255.44,255.3,2.3501]
[1732217833752,15.0352,255.44,255.27,11.91980893]
[1732217833955,15.0352,255.44,255.3,5.8754]
[1732217834657,15.0352,255.44,255.31,23.776884]
[1732217834960,2.5,255.42,255.3,5.8754]
[1732217835163,5.0,255.39,255.26,0.39175742]
[1732217835337,31.9159,255.38,255.26,0.39175742]
[1732217835538,2.5,255.36,255.26,0.39175742]
[1732217835755,43.9585,255.35,255.26,0.39175742]
[1732217836058,5.0,255.33,255.26,0.39175742]
[1732217836254,2.5,255.3,255.26,0.39175742]
[1732217836856,2.5,255.3,255.06,30.7262]
[1732217836857,2.5,255.24,255.07,11.91980893]
[1732217837056,2.5,255.26,255.07,14.07376804]
[1732217837258,31.9159,255.27,255.11,11.91980893]
[1732217837468,2.5,255.23,255.09,11.91980893]
[1732217837759,12.0426,255.22,255.08,8.2326]
[1732217837961,2.5,255.21,255.06,11.91980893]
[1732217838160,31.9159,255.18,255.04,11.91980893]
[1732217838332,31.9159,255.18,255.03,8.2342]
[1732217838536,2.5,255.16,255.03,8.2342]
[1732217838949,2.5,255.12,255.03,5.8816]
[1732217839154,2.5,255.11,254.98,11.91980893]
[1732217839436,2.5,255.11,254.99,2.3529]
[1732217839642,2.5,255.13,254.99,2.3529]
[1732217839934,20.0,255.17,255.0,17.29416156]
[1732217840139,15.35,255.16,255.0,5.37435263]
[1732217840340,2.5,255.11,254.99,2.3529]
[1732217840540,2.5,255.11,254.99,5.8825]
[1732217840838,2.5,255.11,254.93,19.16341238]
[1732217840839,2.5,255.09,254.93,19.16341238]
[1732217841039,2.5,255.09,254.94,2.3534]
[1732217841040,2.5,255.06,254.94,2.3534]
[1732217841460,2.5,255.04,254.92,2.3536]
[1732217841963,2.5,255.02,254.9,2.3538]
[1732217842149,2.5,255.02,254.88,5.8849]
[1732217842346,2.5,255.02,254.88,8.2389]
[1732217842549,12.85,255.03,254.8,19.16341238]
[1732217842550,2.5,254.95,254.8,19.16341238]
[1732217842857,31.7865,254.98,254.88,19.16341238]
[1732217843049,31.7865,254.98,254.86,19.16341238]
[1732217843257,34.2865,254.98,254.84,19.16341238]
[1732217843446,34.2865,254.98,254.82,25.04971238]
[1732217843642,2.5,254.96,254.82,25.04971238]
[1732217843987,5.0,254.96,254.82,5.8863]
[1732217844155,5.0,254.96,254.65,5.0]
[1732217844156,2.5,254.94,254.78,19.16341238]
[1732217844360,2.5,254.91,254.78,19.16341238]
[1732217844745,2.5,254.89,254.77,8.2426]
[1732217845060,2.5,254.92,254.77,27.40601238]
[1732217845247,2.5,254.88,254.77,8.2426]
[1732217845454,20.0,254.94,254.77,5.8876]
[1732217845455,31.7474,254.85,254.77,5.8876]
[1732217845854,31.7474,254.85,254.73,21.51881238]
[1732217845855,34.2474,254.85,254.73,21.51881238]
[1732217846061,31.7474,254.85,254.73,21.51881238]
[1732217846254,31.7474,254.85,254.75,19.16341238]
[1732217846453,34.2474,254.85,254.75,19.16341238]
[1732217846660,2.0,254.83,254.73,5.8885]
[1732217847047,2.0,254.78,254.66,5.89]
[1732217847258,2.0,254.75,254.63,2.3563]
[1732217847467,2.0,254.75,254.62,19.66341238]
[1732217847650,2.0,254.75,254.62,0.5]
[1732217847845,2.0,254.72,254.6,5.8915]
[1732217848154,12.8542,254.7,254.6,5.8915]
[1732217848551,12.8542,254.7,254.68,0.5]
[1732217848763,31.7474,254.71,254.69,19.16341238]
[1732217849064,31.7474,254.71,254.61,19.16341238]
[1732217849261,31.7474,254.71,254.6,8.2481]
[1732217849459,2.0,254.7,254.6,8.2481]
[1732217849660,33.7474,254.71,254.6,5.8915]
[1732217850244,2.0,254.67,254.56,19.50126594]
[1732217850452,2.0,254.67,254.55,19.73225901]
[1732217850747,2.0,254.61,254.55,38.89567139]
[1732217850947,2.0,254.61,254.33,2.5]
[1732217850948,2.0,254.6,254.43,21.52161238]
[1732217851148,14.2561,254.64,254.48,0.5]
[1732217851350,2.5,254.54,254.27,2.5]
[1732217851551,20.0,254.63,254.45,19.16341238]
[1732217851854,20.0,254.63,254.28,32.14371238]
[1732217851855,2.5,254.59,254.42,19.16341238]
[1732217852058,2.5,254.59,254.43,2.3582]
[1732217852253,12.2561,254.64,254.48,19.16341238]
[1732217852254,2.5,254.63,254.48,19.16341238]
[1732217852452,12.2561,254.64,254.54,19.16341238]
[1732217852658,12.2561,254.77,254.58,19.16341238]
[1732217852952,2.5,254.76,254.59,19.16341238]
[1732217853179,12.2561,254.77,254.65,19.16341238]
[1732217853346,12.2561,254.77,254.66,23.776884]
[1732217853972,12.2561,254.77,254.7,23.776884]
[1732217854347,12.2561,254.77,254.68,23.776884]
[1732217855465,2.5,254.87,254.67,8.2458]
[1732217855466,12.2561,254.87,254.74,19.16341238]
[1732217855777,12.2561,254.87,254.77,23.776884]
[1732217856576,2.5,254.9,254.68,25.05291238]
[1732217856749,32.9836,254.91,254.72,19.16341238]
[1732217856953,32.9836,254.91,254.77,19.16341238]
[1732217857149,2.5,254.9,254.71,19.16341238]
[1732217857460,35.4836,254.91,254.75,19.16341238]
[1732217857768,32.9836,254.91,254.79,19.16341238]
[1732217857949,32.9836,254.91,254.84,23.776884]
[1732217858150,45.2397,255.03,254.86,23.776884]
[1732217858358,45.2397,255.03,254.89,19.16341238]
[1732217858554,45.2397,255.03,254.9,23.776884]
[1732217859567,45.2397,255.03,254.8,21.66341238]
[1732217859568,45.2397,255.03,254.93,19.16341238]
[1732217859770,45.2397,255.03,254.95,23.776884]
[1732217860277,2.5,255.12,254.95,23.776884]
[1732217860456,43.6366,255.16,254.97,19.16341238]
[1732217860657,43.6366,255.16,254.98,54.91273186]
[1732217860856,43.6366,255.16,255.01,23.776884]
[1732217861456,43.6366,255.16,255.03,23.776884]
[1732217861778,29.445747,255.41,255.09,23.776884]
[1732217861779,43.6366,255.27,255.09,23.776884]
[1732217861954,43.6366,255.27,255.11,23.776884]
[1732217862651,43.6366,255.27,255.09,23.776884]
[1732217862851,43.6366,255.27,255.09,26.128884]
[1732217863071,0.53044838,255.26,255.11,23.776884]
[1732217864179,0.53044838,255.26,254.97,2.5]
[1732217864378,5.0,255.19,254.98,12.3538]
[1732217864677,2.5,255.17,254.98,12.3538]
[1732217864883,2.5,255.23,255.05,31.13584786]
[1732217865373,20.0,255.26,255.08,31.13584786]
[1732217865576,2.5,255.23,255.08,31.13584786]
[1732217865770,2.5,255.25,255.08,31.13584786]
[1732217866074,22.5,255.26,255.07,3.5284]
[1732217866286,2.5,255.23,255.08,23.776884]
[1732217866988,22.5,255.26,255.08,54.91273186]
[1732217867188,25.0,255.26,255.08,23.776884]
[1732217867863,20.0,255.26,255.1,23.776884]
[1732217868060,22.5,255.26,255.1,23.776884]
[1732217868265,20.0,255.26,255.1,23.776884]
[1732217868576,5.0,255.25,255.1,23.776884]
[1732217868879,20.0,255.25,255.1,23.776884]
[1732217869188,20.0,255.25,255.09,31.13584786]
[1732217869382,20.0,255.26,255.1,23.776884]
[1732217869890,43.6366,255.27,255.12,23.776884]
[1732217871083,43.6366,255.27,255.14,23.776884]
[1732217871564,46.1366,255.27,255.14,23.776884]
[1732217871762,22.5,255.26,255.14,23.776884]
[1732217871959,2.5,255.24,255.14,23.776884]
[1732217873473,2.5,255.18,254.98,31.13584786]
[1732217873676,2.5,255.16,254.94,31.13584786]
[1732217873993,2.5,255.14,254.93,30.0081]
[1732217874364,2.5,255.14,254.94,31.13584786]
[1732217874580,2.5,255.14,254.95,12.3553]
[1732217875669,43.3576,255.11,254.95,12.3553]
[1732217875866,22.5,255.1,254.95,12.3553]
[1732217876083,2.5,255.08,254.95,8.8252]
[1732217876491,2.5,255.05,254.86,3.5313]
[1732217876796,2.5,255.01,254.82,3.5319]
[1732217877169,2.5,255.09,254.86,31.13584786]
[1732217877479,2.5,255.07,254.86,31.13584786]
[1732217878194,2.5,255.06,254.87,12.3592]
[1732217878794,2.5,255.06,254.88,23.776884]